bitfinex-derivatives/quotes_BTCF0:USTF0_20250509
["timestamp","ask_amount","ask_price","bid_price","bid_amount"]
[1746761612315,0.2443045,102640.0,102630.0,0.7236505]
[1746761612916,0.2443045,102640.0,102630.0,0.65181339]
[1746761613114,0.2443045,102640.0,102630.0,0.81181339]
[1746761613620,0.0494,102640.0,102630.0,1.00181339]
[1746761615416,0.31614161,102640.0,102630.0,0.81181339]
[1746761615808,0.6682045,102640.0,102630.0,0.22318989]
[1746761616115,0.8282045,102640.0,102630.0,0.06318989]
[1746761616317,0.90004161,102640.0,102630.0,0.25811339]
[1746761616507,0.97187872,102640.0,102630.0,0.22801339]
[1746761616914,0.90004161,102640.0,102630.0,0.22801339]
[1746761617116,0.74004161,102640.0,102630.0,0.22801339]
[1746761617816,0.74004161,102640.0,102630.0,0.00118989]
[1746761618118,0.97187872,102640.0,102630.0,0.19611339]
[1746761618512,0.90004161,102640.0,102630.0,0.19611339]
[1746761619115,0.74004161,102640.0,102630.0,0.19611339]
[1746761619311,0.81187872,102640.0,102630.0,0.00118989]
[1746761620223,0.97187872,102640.0,102630.0,0.00118989]
[1746761623713,1.07171872,102640.0,102630.0,0.00118989]
[1746761625224,0.91171872,102640.0,102630.0,0.00118989]
[1746761625924,0.83988161,102640.0,102630.0,0.19611339]
[1746761626112,0.83988161,102640.0,102630.0,0.26121339]
[1746761626510,0.83988161,102640.0,102630.0,0.22831339]
[1746761626713,0.83988161,102640.0,102630.0,0.19611339]
[1746761627324,0.99988161,102640.0,102630.0,0.00118989]
[1746761627626,0.99988161,102640.0,102630.0,0.19611339]
[1746761627923,1.07171872,102640.0,102630.0,0.19611339]
[1746761628120,1.07171872,102640.0,102630.0,0.26041339]
[1746761628325,0.83988161,102640.0,102630.0,0.26041339]
[1746761628514,0.7680445,102640.0,102630.0,0.26041339]
[1746761628715,0.83988161,102640.0,102630.0,0.26041339]
[1746761630025,0.7680445,102640.0,102630.0,0.26041339]
[1746761630225,0.83988161,102640.0,102630.0,0.29331339]
[1746761630425,0.47908161,102640.0,102630.0,0.29331339]
[1746761630627,0.83988161,102640.0,102630.0,0.29331339]
[1746761631628,0.7680445,102640.0,102630.0,0.29331339]
[1746761631822,0.83988161,102640.0,102630.0,0.29331339]
[1746761632316,0.83988161,102640.0,102630.0,0.09838989]
[1746761632317,0.91171872,102640.0,102630.0,0.09838989]
[1746761632626,0.91171872,102640.0,102630.0,0.29331339]
[1746761632826,0.83988161,102640.0,102630.0,0.29331339]
[1746761633823,0.7680445,102640.0,102630.0,0.29331339]
[1746761634029,0.83988161,102640.0,102630.0,0.29331339]
[1746761634624,0.31614161,102640.0,102630.0,0.29331339]
[1746761635125,0.67694161,102640.0,102630.0,0.45331339]
[1746761636229,0.67694161,102640.0,102630.0,0.29331339]
[1746761636230,0.73894161,102640.0,102630.0,0.29331339]
[1746761637227,0.6671045,102640.0,102630.0,0.45331339]
[1746761637427,0.73894161,102640.0,102630.0,0.45331339]
[1746761638322,0.73894161,102640.0,102630.0,0.29331339]
[1746761638731,0.2443045,102640.0,102630.0,0.7259505]
[1746761639031,0.2443045,102640.0,102630.0,0.65411339]
[1746761639333,0.2443045,102640.0,102630.0,0.81411339]
[1746761639932,0.2453045,102640.0,102630.0,0.81411339]
[1746761640135,0.2413045,102640.0,102630.0,0.81411339]
[1746761640326,0.2433045,102640.0,102630.0,0.81411339]
[1746761640526,0.3052045,102640.0,102630.0,0.81411339]
[1746761641034,0.6660045,102640.0,102630.0,0.45331339]
[1746761641639,0.6610045,102640.0,102630.0,0.45331339]
[1746761641837,0.6640045,102640.0,102630.0,0.45331339]
[1746761642132,0.3032045,102640.0,102630.0,0.45331339]
[1746761642329,0.6640045,102640.0,102630.0,0.45331339]
[1746761644738,0.6327045,102640.0,102630.0,0.45331339]
[1746761644933,0.2719045,102640.0,102630.0,0.45331339]
[1746761645135,0.2413045,102640.0,102630.0,0.5251505]
[1746761645838,0.2088045,102640.0,102630.0,1.0959505]
[1746761646541,0.2088045,102640.0,102630.0,0.85411339]
[1746761646838,0.2396045,102640.0,102630.0,0.9259505]
[1746761648446,0.2396045,102640.0,102630.0,0.85411339]
[1746761648739,0.2396045,102640.0,102630.0,0.9259505]
[1746761649642,0.31144161,102640.0,102630.0,0.85411339]
[1746761650339,0.2396045,102640.0,102630.0,0.85411339]
[1746761650543,0.2396045,102640.0,102630.0,0.81411339]
[1746761653738,0.2396045,102640.0,102630.0,0.8859505]
[1746761654237,0.2396045,102640.0,102630.0,0.81411339]
[1746761654638,0.2722045,102640.0,102630.0,0.81411339]
[1746761655740,0.3024045,102640.0,102630.0,0.81411339]
[1746761657246,0.3024045,102640.0,102630.0,0.8859505]
[1746761657548,0.2722045,102640.0,102630.0,0.8859505]
[1746761657748,0.2396045,102640.0,102630.0,0.8859505]
[1746761658647,0.2396045,102640.0,102630.0,0.81411339]
[1746761658848,0.2396045,102640.0,102630.0,0.8859505]
[1746761659249,0.2396045,102640.0,102630.0,0.81411339]
[1746761659442,0.2396045,102640.0,102630.0,0.8859505]
[1746761660350,0.2396045,102640.0,102630.0,0.81411339]
[1746761660653,0.2396045,102640.0,102630.0,0.81389786]
[1746761660855,0.2714045,102640.0,102630.0,0.81389786]
[1746761661053,0.3025045,102640.0,102630.0,0.81389786]
[1746761663156,0.3025045,102640.0,102630.0,0.81411339]
[1746761667362,0.37434161,102640.0,102630.0,0.81411339]
[1746761668175,0.37434161,102640.0,102630.0,0.65411339]
[1746761668474,0.3025045,102640.0,102630.0,0.65411339]
[1746761668676,0.37434161,102640.0,102630.0,0.65411339]
[1746761669268,0.3025045,102640.0,102630.0,0.65411339]
[1746761669483,0.37434161,102640.0,102630.0,0.65411339]
[1746761669877,0.3025045,102640.0,102630.0,0.65411339]
[1746761670074,0.3025045,102640.0,102630.0,0.81411339]
[1746761671274,0.3025045,102640.0,102630.0,0.65411339]
[1746761673072,0.37434161,102640.0,102630.0,0.65411339]
[1746761674377,0.3025045,102640.0,102630.0,0.65411339]
[1746761674678,0.37434161,102640.0,102630.0,0.65411339]
[1746761675668,0.37434161,102640.0,102630.0,0.29331339]
[1746761675971,0.73514161,102640.0,102630.0,0.29331339]
[1746761676373,0.73514161,102640.0,102630.0,0.19611339]
[1746761676576,0.6633045,102640.0,102630.0,0.19611339]
[1746761676874,0.73514161,102640.0,102630.0,0.19611339]
[1746761677576,0.6633045,102640.0,102630.0,0.19611339]
[1746761677776,0.73514161,102640.0,102630.0,0.19611339]
[1746761677970,0.6633045,102640.0,102630.0,0.19611339]
[1746761678175,0.3025045,102640.0,102630.0,0.26071339]
[1746761678371,0.6633045,102640.0,102630.0,0.29111339]
[1746761678568,0.1076,102640.0,102630.0,0.65191339]
[1746761678876,0.2396045,102640.0,102630.0,0.65191339]
[1746761679074,0.2396045,102640.0,102630.0,0.81191339]
[1746761679375,0.0447,102640.0,102630.0,0.81191339]
[1746761681881,0.0769,102640.0,102630.0,0.81191339]
[1746761682072,0.1091,102640.0,102630.0,0.81191339]
[1746761682380,0.1091,102640.0,102630.0,0.65191339]
[1746761683982,0.1091,102640.0,102630.0,0.29111339]
[1746761687483,0.3040045,102640.0,102630.0,0.29111339]
[1746761689585,0.37584161,102640.0,102630.0,0.29111339]
[1746761689883,0.3040045,102640.0,102630.0,0.29111339]
[1746761691577,0.37584161,102640.0,102630.0,0.29111339]
[1746761693891,0.37584161,102640.0,102630.0,0.65191339]
[1746761694383,0.3040045,102640.0,102630.0,0.65191339]
[1746761694887,0.3040045,102640.0,102630.0,0.29111339]
[1746761698489,0.0447,102640.0,102630.0,0.3629505]
[1746761699288,0.6004045,102640.0,102630.0,0.29111339]
[1746761701290,0.6663045,102640.0,102630.0,0.29111339]
[1746761702287,0.80997872,102640.0,102630.0,0.00118989]
[1746761702792,0.80997872,102640.0,102630.0,0.19611339]
[1746761703091,0.6663045,102640.0,102630.0,0.19611339]
[1746761703791,0.73814161,102640.0,102630.0,0.19611339]
[1746761705801,0.80997872,102640.0,102630.0,0.00118989]
[1746761705998,0.90741072,102640.0,102630.0,0.00118989]
[1746761706184,1.06741072,102640.0,102630.0,0.00118989]
[1746761707394,1.06941072,102640.0,102630.0,0.00118989]
[1746761707586,1.07141072,102640.0,102630.0,0.00118989]
[1746761708697,0.97397872,102640.0,102630.0,0.00118989]
[1746761709995,0.1949425,102620.0,102610.0,0.24363681]
[1746761710298,0.78757961,102620.0,102610.0,0.24363681]
[1746761710502,0.88267961,102620.0,102610.0,0.24363681]
[1746761711093,0.88267961,102620.0,102610.0,0.27643681]
[1746761711293,0.88467961,102620.0,102610.0,0.27843681]
[1746761712099,0.72467961,102620.0,102610.0,0.27843681]
[1746761712399,0.72467961,102620.0,102610.0,0.30963681]
[1746761713102,0.88467961,102620.0,102610.0,0.30963681]
[1746761713802,0.8128425,102620.0,102610.0,0.30963681]
[1746761714103,0.88710961,102620.0,102610.0,0.30963681]
[1746761714401,0.72710961,102620.0,102610.0,0.27843681]
[1746761715000,0.72710961,102620.0,102610.0,0.08347531]
[1746761715206,0.72710961,102620.0,102610.0,0.05067531]
[1746761715600,0.72710961,102620.0,102610.0,0.24563681]
[1746761715801,0.72710961,102620.0,102610.0,0.27893681]
[1746761716092,0.88710961,102620.0,102610.0,0.27893681]
[1746761716299,0.88710961,102620.0,102610.0,0.08397531]
[1746761716598,0.95894672,102620.0,102610.0,0.01977531]
[1746761716800,1.32934048,102620.0,102610.0,0.00492355]
[1746761717406,1.40117759,102620.0,102610.0,0.00492355]
[1746761717601,1.4986296,102620.0,102610.0,0.00492355]
[1746761718002,1.42679249,102620.0,102610.0,0.00492355]
[1746761718504,1.4986296,102620.0,102610.0,0.00492355]
[1746761720305,1.42679249,102620.0,102610.0,0.00492355]
[1746761721812,1.44118303,102620.0,102610.0,0.00492355]
[1746761722107,1.34373102,102620.0,102610.0,0.00492355]
[1746761722301,1.32934048,102620.0,102610.0,0.00492355]
[1746761722609,1.52714048,102620.0,102610.0,0.00492355]
[1746761723108,1.36714048,102620.0,102610.0,0.00492355]
[1746761723505,1.16934048,102620.0,102610.0,0.00492355]
[1746761723808,1.29530337,102620.0,102610.0,0.19988505]
[1746761723996,1.29530337,102620.0,102610.0,0.29798505]
[1746761724201,1.12466626,102620.0,102610.0,0.29798505]
[1746761724404,0.66486626,102620.0,102610.0,0.29798505]
[1746761724908,0.60246626,102620.0,102610.0,0.29798505]
[1746761725302,0.60246626,102620.0,102610.0,0.36982216]
[1746761725500,0.60246626,102620.0,102610.0,0.56982216]
[1746761726011,0.24166626,102620.0,102610.0,0.93062216]
[1746761726213,0.24166626,102620.0,102610.0,0.56982216]
[1746761726708,0.01402376,102620.0,102610.0,0.93062216]
[1746761727308,0.01402376,102620.0,102610.0,1.09062216]
[1746761727607,0.20896626,102620.0,102610.0,0.45798505]
[1746761727807,0.20896626,102620.0,102610.0,0.56747232]
[1746761728317,0.20896626,102620.0,102610.0,0.92827232]
[1746761728505,0.24006626,102620.0,102610.0,0.92827232]
[1746761728809,0.24006626,102620.0,102610.0,0.81878505]
[1746761730912,0.24006626,102620.0,102610.0,0.45798505]
[1746761731615,0.60086626,102620.0,102610.0,0.45798505]
[1746761732114,0.60086626,102620.0,102610.0,0.29798505]
[1746761732306,0.24006626,102620.0,102610.0,0.29798505]
[1746761732708,0.24642626,102620.0,102610.0,0.29798505]
[1746761733016,0.60722626,102620.0,102610.0,0.29798505]
[1746761733410,0.60722626,102620.0,102610.0,0.45798505]
[1746761734109,0.5976325,102620.0,102610.0,0.56747232]
[1746761734305,0.2057325,102620.0,102610.0,0.92827232]
[1746761734515,0.01079,102620.0,102610.0,0.92827232]
[1746761734814,0.01079,102620.0,102610.0,1.12827232]
[1746761735920,0.01079,102620.0,102610.0,1.16827232]
[1746761736314,0.01079,102620.0,102610.0,1.59572432]
[1746761736709,0.01079,102620.0,102610.0,1.48623705]
[1746761736909,0.01079,102620.0,102610.0,1.59572432]
[1746761737310,0.01079,102620.0,102610.0,1.704129]
[1746761742519,0.01079,102620.0,102610.0,1.605489]
[1746761742721,0.01079,102620.0,102610.0,1.802729]
[1746761743225,0.01079,102620.0,102610.0,1.69324173]
[1746761743428,0.01079,102620.0,102610.0,1.802729]
[1746761743725,0.01079,102620.0,102610.0,1.802689]
[1746761745116,0.01079,102620.0,102610.0,2.163489]
[1746761745426,0.00467855,102620.0,102610.0,2.163489]
[1746761745724,0.28447459,102640.0,102630.0,0.1949235]
[1746761746116,0.28447459,102640.0,102630.0,0.2919235]
[1746761746324,0.28447459,102640.0,102630.0,0.4719235]
[1746761746526,0.31667459,102640.0,102630.0,0.4719235]
[1746761747024,0.31667459,102640.0,102630.0,0.2919235]
[1746761747219,0.31667459,102640.0,102630.0,0.4719235]
[1746761747526,0.31667459,102640.0,102630.0,0.2919235]
[1746761747714,0.31867459,102640.0,102630.0,0.2929235]
[1746761747915,0.32167459,102640.0,102630.0,0.2939235]
[1746761748825,0.32167459,102640.0,102630.0,0.4839235]
[1746761749130,0.32167459,102640.0,102630.0,0.6439235]
[1746761749520,0.32167459,102640.0,102630.0,0.4539235]
[1746761750021,0.32167459,102640.0,102630.0,0.70575512]
[1746761750219,0.28947459,102640.0,102630.0,0.36575512]
[1746761750413,0.28947459,102640.0,102630.0,0.2939235]
[1746761750818,0.31997459,102640.0,102630.0,0.2939235]
[1746761751427,0.31997459,102640.0,102630.0,0.36575512]
[1746761751625,0.31997459,102640.0,102630.0,0.4639235]
[1746761751925,0.31997459,102640.0,102630.0,0.2939235]
[1746761752123,0.31997459,102640.0,102630.0,0.4539235]
[1746761752928,0.31997459,102640.0,102630.0,0.4230235]
[1746761756435,0.0363,102640.0,102630.0,1.02565512]
[1746761756726,0.0363,102640.0,102630.0,1.06565512]
[1746761756930,0.0363,102640.0,102630.0,0.9938235]
[1746761757128,0.0363,102640.0,102630.0,1.06565512]
[1746761757719,0.0333,102640.0,102630.0,1.06565512]
[1746761762540,0.2282045,102640.0,102630.0,1.06565512]
[1746761762832,0.0333,102640.0,102630.0,1.06565512]
[1746761763040,0.0643,102640.0,102630.0,1.06565512]
[1746761763242,0.0972,102640.0,102630.0,1.09825512]
[1746761770053,0.0972,102640.0,102630.0,1.05825512]
[1746761770956,0.0333,102640.0,102630.0,1.05825512]
[1746761772258,0.0333,102640.0,102630.0,0.9864235]
[1746761772450,0.0333,102640.0,102630.0,1.05825512]
[1746761774759,0.0333,102640.0,102630.0,0.69745512]
[1746761774952,0.0333,102640.0,102630.0,1.05825512]
[1746761778061,0.002,102640.0,102630.0,1.54008674]
[1746761778256,0.002,102640.0,102630.0,1.61788674]
[1746761778561,0.002,102640.0,102630.0,1.4742235]
[1746761778763,0.002,102640.0,102630.0,1.61788674]
[1746761779058,0.002,102640.0,102630.0,1.81432674]
[1746761779251,0.002,102640.0,102630.0,1.65432674]
[1746761779757,0.002,102640.0,102630.0,1.75175873]
[1746761780360,0.002,102640.0,102630.0,1.91275873]
[1746761781667,0.00443,102640.0,102630.0,1.91275873]
[1746761783262,0.00443,102640.0,102630.0,1.91580522]
[1746761783462,0.00443,102640.0,102630.0,1.91572522]
[1746761784069,0.00443,102640.0,102630.0,1.93061461]
[1746761784364,0.00443,102640.0,102630.0,1.78695137]
[1746761784863,0.00443,102640.0,102630.0,1.93061461]
[1746761785457,1e-07,102640.0,102630.0,1.93061461]
[1746761785759,1e-07,102640.0,102630.0,1.91572522]
[1746761787161,1e-07,102640.0,102630.0,1.93052697]
[1746761787357,0.0316,102670.0,102640.0,0.0487235]
[1746761787664,0.0316,102670.0,102660.0,0.69932974]
[1746761787665,0.001,102670.0,102660.0,0.69932974]
[1746761787864,0.033,102670.0,102660.0,1.33439623]
[1746761789258,0.193,102670.0,102660.0,1.33134974]
[1746761789455,0.193,102670.0,102660.0,1.33234974]
[1746761789456,0.196,102670.0,102660.0,1.33234974]
[1746761789766,0.196,102670.0,102660.0,1.34229384]
[1746761789963,0.194,102670.0,102660.0,1.34229384]
[1746761790171,0.034,102670.0,102660.0,1.35725772]
[1746761790461,0.034,102670.0,102660.0,1.36030354]
[1746761791367,0.034,102670.0,102660.0,1.35725772]
[1746761792571,0.034,102670.0,102660.0,1.52725772]
[1746761795468,0.0989,102670.0,102660.0,1.52725772]
[1746761796169,0.2589,102670.0,102660.0,1.52725772]
[1746761797172,0.0989,102670.0,102660.0,1.52725772]
[1746761798178,0.2589,102670.0,102660.0,1.52725772]
[1746761799475,0.2589,102670.0,102660.0,1.16645772]
[1746761799677,0.2589,102670.0,102660.0,1.88805772]
[1746761800578,0.2589,102670.0,102660.0,1.60805772]
[1746761802480,0.2589,102670.0,102660.0,1.89805772]
[1746761807180,0.0989,102670.0,102660.0,1.89805772]
[1746761807386,0.0989,102670.0,102660.0,1.90110363]
[1746761808087,0.2589,102670.0,102660.0,1.90110363]
[1746761808684,0.194,102670.0,102660.0,1.90110363]
[1746761809188,0.034,102670.0,102660.0,1.90110363]
[1746761809481,0.034,102670.0,102660.0,1.97293525]
[1746761809688,0.033,102670.0,102660.0,1.97293525]
[1746761810074,0.034,102670.0,102660.0,1.97493525]
[1746761810479,1e-07,102670.0,102660.0,1.97188934]
[1746761810677,0.00273,102680.0,102670.0,0.1948475]
[1746761810876,0.00273,102680.0,102670.0,1.30231074]
[1746761811486,0.00273,102680.0,102670.0,1.30535624]
[1746761812281,0.001,102700.0,102690.0,0.1948096]
[1746761812589,0.001,102700.0,102690.0,1.91277834]
[1746761812892,0.066,102700.0,102690.0,1.91277834]
[1746761813087,0.226,102700.0,102690.0,1.84094672]
[1746761813280,0.4207906,102700.0,102690.0,1.58328672]
[1746761813482,0.228,102700.0,102690.0,1.74372122]
[1746761813790,0.4538906,102700.0,102690.0,1.43372122]
[1746761813983,0.2591,102700.0,102690.0,1.43372122]
[1746761814290,0.2601,102700.0,102690.0,1.43372122]
[1746761815484,0.2601,102700.0,102690.0,1.46462122]
[1746761815880,0.52672222,102700.0,102690.0,0.5556096]
[1746761816285,0.4548906,102700.0,102690.0,0.5556096]
[1746761817190,0.52672222,102700.0,102690.0,0.5556096]
[1746761817491,0.4548906,102700.0,102690.0,0.5556096]
[1746761817683,0.52672222,102700.0,102690.0,0.5556096]
[1746761818084,0.4548906,102700.0,102690.0,0.5556096]
[1746761818284,0.52672222,102700.0,102690.0,0.5556096]
[1746761818485,0.4548906,102700.0,102690.0,0.5556096]
[1746761819595,0.4548906,102700.0,102690.0,0.55865512]
[1746761820197,0.52672222,102700.0,102690.0,0.55865512]
[1746761820594,0.95935384,102700.0,102690.0,0.1948096]
[1746761820792,0.1948285,102680.0,102670.0,0.3608]
[1746761820996,0.1948475,102670.0,102660.0,0.20983038]
[1746761821192,0.4500475,102670.0,102660.0,0.20983038]
[1746761821498,0.52187912,102670.0,102660.0,0.20983038]
[1746761821886,0.2552,102670.0,102660.0,0.20983038]
[1746761822100,0.2552,102670.0,102660.0,0.57063038]
[1746761822498,0.2552,102670.0,102660.0,0.57367678]
[1746761822797,0.2562,102670.0,102660.0,0.57867679]
[1746761823298,0.26578556,102670.0,102660.0,0.57867679]
[1746761823502,0.26678556,102670.0,102660.0,0.58367678]
[1746761824200,0.26578556,102670.0,102660.0,0.57967678]
[1746761824400,0.57003179,102670.0,102660.0,0.02096388]
[1746761824601,0.57003179,102670.0,102660.0,0.21583038]
[1746761824899,0.56903179,102670.0,102660.0,0.22563436]
[1746761825091,0.56903179,102670.0,102660.0,0.22663436]
[1746761825398,0.56903179,102670.0,102660.0,0.21183038]
[1746761825998,0.46363306,102670.0,102660.0,0.21183038]
[1746761826503,0.57303179,102670.0,102660.0,0.21183038]
[1746761826892,0.57603179,102670.0,102660.0,0.21183038]
[1746761827302,0.57603179,102670.0,102660.0,0.22662955]
[1746761828103,0.57603179,102670.0,102660.0,0.21183038]
[1746761828901,0.46663306,102670.0,102660.0,0.21183038]
[1746761829103,0.57603179,102670.0,102660.0,0.21183038]
[1746761829910,0.93683179,102670.0,102660.0,0.21183038]
[1746761838103,0.93683179,102670.0,102660.0,0.01696388]
[1746761838304,1.03423579,102670.0,102660.0,0.002]
[1746761840513,1.14363452,102670.0,102660.0,0.002]
[1746761841011,1.03423579,102670.0,102660.0,0.002]
[1746761841198,1.14363452,102670.0,102660.0,0.002]
[1746761843708,1.06850448,102670.0,102660.0,0.002]
[1746761845508,1.55275698,102670.0,102650.0,0.00292255]
[1746761845707,0.1949045,102640.0,102630.0,0.06377436]
[1746761845907,0.62753821,102640.0,102630.0,0.06377436]
[1746761846110,0.72383821,102640.0,102630.0,0.06377436]
[1746761846913,0.72483821,102640.0,102630.0,0.06677436]
[1746761847113,0.88483821,102640.0,102630.0,0.06677436]
[1746761847318,0.8130045,102640.0,102630.0,0.26169786]
[1746761847609,0.88583821,102640.0,102630.0,0.26469786]
[1746761848116,0.72583821,102640.0,102630.0,0.27952837]
[1746761848516,0.72583821,102640.0,102630.0,0.29433713]
[1746761851320,0.72583821,102640.0,102630.0,0.09941363]
[1746761851522,0.79767192,102640.0,102630.0,0.09941363]
[1746761852211,0.95767192,102640.0,102630.0,0.09941363]
[1746761852615,0.95767192,102640.0,102630.0,0.08458312]
[1746761854023,1.31847192,102640.0,102630.0,0.08458312]
[1746761855224,1.31847192,102640.0,102630.0,0.06977436]
[1746761855521,0.59687192,102640.0,102630.0,0.10157436]
[1746761855727,1.31847192,102640.0,102630.0,0.11637149]
[1746761856927,1.31847192,102640.0,102630.0,0.10157436]
[1746761858422,1.31847192,102640.0,102630.0,0.03977436]
[1746761858629,1.31847192,102640.0,102610.0,0.00292355]
[1746761858630,0.1949425,102620.0,102610.0,0.00292355]
[1746761858922,1.06020992,102620.0,102610.0,0.03392355]
[1746761859124,1.31580992,102620.0,102610.0,0.03392355]
[1746761859424,1.41288992,102620.0,102610.0,0.01797467]
[1746761859640,1.58217564,102620.0,102610.0,0.01797467]
[1746761859835,0.1949615,102610.0,102600.0,0.13197465]
[1746761860132,0.92452892,102610.0,102600.0,0.10097465]
[1746761861822,0.8904375,102610.0,102600.0,0.10097465]
[1746761862329,0.8914375,102610.0,102600.0,0.10097465]
[1746761862529,0.90622726,102610.0,102600.0,0.13377465]
[1746761862830,0.90722726,102610.0,102600.0,0.13477465]
[1746761863630,0.90622726,102610.0,102600.0,0.13377465]
[1746761863829,0.91322726,102610.0,102600.0,0.13377465]
[1746761864825,0.91922726,102610.0,102600.0,0.13377465]
[1746761865131,0.75922726,102610.0,102600.0,0.13377465]
[1746761865829,1.12002726,102610.0,102600.0,0.13377465]
[1746761866931,1.12002726,102610.0,102600.0,0.10097465]
[1746761869133,1.12102726,102610.0,102600.0,0.13297465]
[1746761869827,1.11402726,102610.0,102600.0,0.13297465]
[1746761870030,1.12202726,102610.0,102600.0,0.13397465]
[1746761870432,1.12202726,102610.0,102600.0,0.10197465]
[1746761871328,1.01245126,102610.0,102600.0,0.13377465]
[1746761871626,1.12202726,102610.0,102600.0,0.13377465]
[1746761872040,1.12202726,102610.0,102600.0,0.14867428]
[1746761872830,1.12445726,102610.0,102600.0,0.14867428]
[1746761874435,1.12445726,102610.0,102600.0,0.18007428]
[1746761874627,1.12445726,102610.0,102600.0,0.40675478]
[1746761875236,1.12445726,102610.0,102600.0,0.56675478]
[1746761875837,1.12445726,102610.0,102600.0,0.37177428]
[1746761877936,1.01488126,102610.0,102600.0,0.37177428]
[1746761878136,1.12445726,102610.0,102600.0,0.37177428]
[1746761879333,1.12445726,102610.0,102600.0,0.40675478]
[1746761880242,1.09245726,102610.0,102600.0,0.40675478]
[1746761881542,1.05935726,102610.0,102600.0,0.40675478]
[1746761881737,0.66086513,102610.0,102600.0,0.40675478]
[1746761882038,0.66086513,102610.0,102600.0,0.21177428]
[1746761882343,0.69356513,102610.0,102600.0,0.21177428]
[1746761882943,0.68556513,102610.0,102600.0,0.21077428]
[1746761883144,0.69056513,102610.0,102600.0,0.37077428]
[1746761883445,0.68856513,102610.0,102600.0,0.37077428]
[1746761884444,0.71906513,102610.0,102600.0,0.33907428]
[1746761885245,0.64107537,102610.0,102600.0,0.53405478]
[1746761885643,0.5691915,102610.0,102600.0,0.53405478]
[1746761885846,0.64107537,102610.0,102600.0,0.53405478]
[1746761887152,0.01343,102610.0,102600.0,1.23862252]
[1746761887448,0.2083915,102610.0,102600.0,1.16673865]
[1746761887846,0.2083915,102610.0,102600.0,1.20435451]
[1746761888441,0.01343,102610.0,102600.0,1.20435451]
[1746761888648,0.2073915,102610.0,102600.0,1.20535451]
[1746761889047,0.2013915,102610.0,102600.0,1.20535451]
[1746761889249,0.2053915,102610.0,102600.0,0.89585478]
[1746761889642,0.2053915,102610.0,102600.0,1.07585478]
[1746761890643,0.67569123,102610.0,102600.0,0.34007428]
[1746761890838,0.70619123,102610.0,102600.0,0.34007428]
[1746761891043,0.76829123,102610.0,102600.0,0.34007428]
[1746761891247,0.76829123,102610.0,102600.0,0.18007428]
[1746761894743,0.76829123,102610.0,102600.0,0.14867428]
[1746761894744,0.6587915,102610.0,102600.0,0.14867428]
[1746761895046,0.76829123,102610.0,102600.0,0.14867428]
[1746761895545,0.76829123,102610.0,102600.0,0.11687428]
[1746761895747,0.86489123,102610.0,102600.0,0.11687428]
[1746761898053,0.86489123,102610.0,102600.0,0.14807428]
[1746761898951,0.86489123,102610.0,102600.0,0.11687428]
[1746761899254,1.02489123,102610.0,102600.0,0.11687428]
[1746761901148,0.86489123,102610.0,102600.0,0.11687428]
[1746761901349,0.86489123,102610.0,102600.0,0.14947428]
[1746761902657,0.96121123,102610.0,102600.0,0.18087428]
[1746761905360,1.32201123,102610.0,102600.0,0.18087428]
[1746761906863,1.32201123,102610.0,102600.0,0.14947428]
[1746761910265,1.32201123,102610.0,102600.0,0.30947428]
[1746761911166,1.32201123,102610.0,102600.0,0.14947428]
[1746761911765,1.22569123,102610.0,102600.0,0.14947428]
[1746761911965,1.32185123,102610.0,102600.0,0.18017428]
[1746761912177,1.32185123,102610.0,102600.0,0.34017428]
[1746761912362,1.32185123,102610.0,102600.0,0.37147428]
[1746761913668,1.12909123,102610.0,102600.0,0.37147428]
[1746761913866,1.22569123,102610.0,102600.0,0.37147428]
[1746761921373,1.06699123,102610.0,102600.0,0.56645478]
[1746761921561,1.06699123,102610.0,102600.0,0.37147428]
[1746761924063,0.70619123,102610.0,102600.0,0.37147428]
[1746761925668,0.2053915,102610.0,102600.0,0.56645478]
[1746761926671,0.2053915,102610.0,102600.0,1.09725478]
[1746761926872,0.2053915,102610.0,102600.0,1.20675451]
[1746761927071,0.2053915,102610.0,102600.0,1.03675451]
[1746761927272,0.2053915,102610.0,102600.0,1.20675451]
[1746761927471,0.2053915,102610.0,102600.0,0.85595451]
[1746761927677,0.2053915,102610.0,102600.0,1.21675451]
[1746761928177,0.2053915,102610.0,102600.0,1.03675451]
[1746761928376,0.2053915,102610.0,102600.0,1.19675451]
[1746761928679,0.2053915,102610.0,102600.0,1.03675451]
[1746761928878,0.2053915,102610.0,102600.0,0.92725478]
[1746761929275,0.2053915,102610.0,102600.0,0.56645478]
[1746761930984,0.67569123,102610.0,102600.0,0.34017428]
[1746761931171,0.93319123,102610.0,102600.0,0.18017428]
[1746761931372,0.93319123,102610.0,102600.0,0.08175868]
[1746761931870,0.93319123,102610.0,102600.0,0.11495868]
[1746761932279,0.77319123,102610.0,102600.0,0.11495868]
[1746761933475,0.6636915,102610.0,102600.0,0.11495868]
[1746761933680,0.77319123,102610.0,102600.0,0.11495868]
[1746761937283,0.77319123,102610.0,102600.0,0.08175868]
[1746761941082,0.93319123,102610.0,102600.0,0.08175868]
[1746761942681,1.02923123,102610.0,102600.0,0.08175868]
[1746761943186,0.86923123,102610.0,102600.0,0.08175868]
[1746761944185,1.02923123,102610.0,102600.0,0.08175868]
[1746761944377,1.13873096,102610.0,102600.0,0.08175868]
[1746761944883,1.02923123,102610.0,102600.0,0.08175868]
[1746761946087,0.86923123,102610.0,102600.0,0.08175868]
[1746761946983,0.97873096,102610.0,102600.0,0.08175868]
[1746761947186,1.02923123,102610.0,102600.0,0.08175868]
[1746761947487,1.13873096,102610.0,102600.0,0.08175868]
[1746761951191,0.97873096,102610.0,102600.0,0.08175868]
[1746761953096,0.86923123,102610.0,102600.0,0.08175868]
[1746761953695,0.90355686,102610.0,102600.0,0.08175868]
[1746761954697,0.7597315,102610.0,102600.0,0.08175868]
[1746761954994,0.90355686,102610.0,102600.0,0.08175868]
[1746761956293,1.06355686,102610.0,102600.0,0.08175868]
[1746761957214,0.90355686,102610.0,102600.0,0.08175868]
[1746761957497,0.90355686,102610.0,102600.0,0.11485868]
[1746761960000,1.26435686,102610.0,102600.0,0.11485868]
[1746761960301,1.42435686,102610.0,102600.0,0.11485868]
[1746761961101,1.26435686,102610.0,102600.0,0.11485868]
[1746761961302,1.26435686,102610.0,102600.0,0.11520423]
[1746761962500,0.54275686,102610.0,102600.0,0.11520423]
[1746761962703,1.26435686,102610.0,102600.0,0.11520423]
[1746761962905,1.16831686,102610.0,102600.0,0.11520423]
[1746761963105,1.35891686,102610.0,102600.0,0.11520423]
[1746761963908,1.35891686,102610.0,102600.0,0.14640423]
[1746761965106,1.26375686,102610.0,102600.0,0.14640423]
[1746761965307,1.35887686,102610.0,102600.0,0.14640423]
[1746761966195,1.35887686,102610.0,102600.0,0.30640423]
[1746761966403,1.28696418,102610.0,102600.0,0.30640423]
[1746761967002,1.2150515,102610.0,102600.0,0.30640423]
[1746761967305,1.28692418,102610.0,102600.0,0.30640423]
[1746761967806,0.9269915,102610.0,102600.0,0.30640423]
[1746761968005,0.9269915,102610.0,102600.0,0.50138473]